[Event "New Zealand Rapid Championship"]
[Site "Wellington"]
[ePGN "0.1;DGT LiveChess/2.2.5"]
[Date "2023.01.12"]
[Round "5.1"]
[White "Croad, Nicolas"]
[Black "Park-Tamati, Philli"]
[Result "1-0"]
[TimeControl "25+5"]
[WhiteTitle "FM"]
[WhiteFideId "4300793"]
[BlackFideId "4309090"]
[WhiteElo "2309"]
[BlackElo "1861"]

1. e4 {[%clk 00:25:09]} {[%emt 00:00:01]} c6 {[%clk 00:25:07]} {[%emt
00:00:13]} 2. d4 {[%clk 00:25:12]} d5 {[%clk 00:25:11]} 3. Nd2 {[%clk
00:25:16]} dxe4 {[%clk 00:25:09]} {[%emt 00:00:01]} 4. Nxe4 {[%clk 00:25:19]}
{[%emt 00:00:02]} Bf5 {[%clk 00:24:58]} {[%emt 00:00:16]} 5. Ng3 {[%clk
00:25:22]} {[%emt 00:00:05]} Bg6 {[%clk 00:25:03]} 6. h4 {[%clk 00:25:24]} h6
{[%clk 00:25:07]} {[%emt 00:00:01]} 7. Nf3 {[%clk 00:25:28]} {[%emt 00:00:02]}
Nd7 {[%clk 00:25:10]} 8. h5 {[%clk 00:25:31]} {[%emt 00:00:02]} Bh7 {[%clk
00:25:15]} 9. Bd3 {[%clk 00:25:35]} {[%emt 00:00:02]} Bxd3 {[%clk 00:25:18]}
{[%emt 00:00:01]} 10. Qxd3 {[%clk 00:25:38]} {[%emt 00:00:01]} e6 {[%clk
00:25:22]} 11. Bf4 {[%clk 00:25:38]} {[%emt 00:00:05]} Qa5+ {[%clk 00:25:25]}
{[%emt 00:00:03]} 12. Bd2 {[%clk 00:25:41]} {[%emt 00:00:02]} Bb4 {[%clk
00:25:29]} {[%emt 00:00:01]} 13. c3 {[%clk 00:25:45]} {[%emt 00:00:01]} Be7
{[%clk 00:25:33]} 14. c4 {[%clk 00:25:45]} {[%emt 00:00:05]} Qc7 {[%clk
00:25:37]} 15. d5 {[%clk 00:25:46]} {[%emt 00:00:06]} cxd5 {[%clk 00:25:41]} 16.
cxd5 {[%clk 00:25:50]} Qd6 {[%clk 00:25:46]} 17. Qb3 {[%clk 00:25:49]} {[%emt
00:00:06]} Qxd5 {[%clk 00:25:22]} {[%emt 00:00:29]} 18. Qxd5 {[%clk 00:25:51]}
{[%emt 00:00:03]} exd5 {[%clk 00:25:26]} {[%emt 00:00:06]} 19. Nf5 {[%clk
00:24:58]} {[%emt 00:00:54]} Kf8 {[%clk 00:20:15]} {[%emt 00:05:16]} 20. Rc1
{[%clk 00:22:48]} {[%emt 00:02:15]} Bc5 {[%clk 00:17:29]} {[%emt 00:02:51]} 21.
b4 {[%clk 00:21:53]} {[%emt 00:01:11]} Bb6 {[%clk 00:17:12]} {[%emt 00:00:13]}
22. Bf4 {[%clk 00:21:48]} {[%emt 00:00:09]} Ngf6 {[%clk 00:16:29]} {[%emt
00:00:47]} 23. Nd6 {[%clk 00:17:25]} {[%emt 00:04:29]} Ne4 {[%clk 00:15:54]}
{[%emt 00:00:40]} 24. O-O {[%clk 00:16:38]} {[%emt 00:00:57]} Ndf6 {[%clk
00:15:20]} {[%emt 00:00:35]} 25. Nxb7 {[%clk 00:14:04]} {[%emt 00:02:51]} Nxh5
{[%clk 00:12:48]} {[%emt 00:06:01]} 26. Bc7 {[%clk 00:12:59]} Nhg3 {[%clk
00:11:02]} 27. Bxg3 {[%clk 00:10:10]} {[%emt 00:02:18]} Nxg3 {[%clk 00:11:05]}
{[%emt 00:00:02]} 28. Rfe1 {[%clk 00:10:14]} Ne4 {[%clk 00:11:08]} {[%emt
00:00:02]} 29. Nc5 {[%clk 00:10:18]} {[%emt 00:00:01]} Nf6 {[%clk 00:09:48]}
{[%emt 00:01:25]} 30. Ne5 {[%clk 00:09:54]} {[%emt 00:00:29]} Rd8 {[%clk
00:09:09]} {[%emt 00:00:44]} 31. a4 {[%clk 00:09:09]} {[%emt 00:00:50]} Kg8
{[%clk 00:02:15]} {[%emt 00:06:59]} 32. a5 {[%clk 00:09:09]} {[%emt 00:00:05]}
Bxc5 {[%clk 00:02:06]} {[%emt 00:00:14]} 33. Rxc5 {[%clk 00:09:08]} {[%emt
00:00:06]} Re8 {[%clk 00:02:03]} {[%emt 00:00:09]} 34. Rc7 {[%clk 00:08:13]}
{[%emt 00:01:00]} Ng4 {[%clk 00:01:54]} {[%emt 00:00:14]} 35. Nd3 {[%clk
00:07:57]} {[%emt 00:00:21]} Rxe1+ {[%clk 00:00:57]} {[%emt 00:01:02]} 36. Nxe1
{[%clk 00:08:01]} Kh7 {[%clk 00:00:41]} {[%emt 00:00:21]} 37. Rxa7 {[%clk
00:08:00]} {[%emt 00:00:07]} Kg6 {[%clk 00:00:36]} {[%emt 00:00:10]} 38. b5
{[%clk 00:07:59]} {[%emt 00:00:05]} Rb8 {[%clk 00:00:35]} {[%emt 00:00:04]} 39.
b6 {[%clk 00:08:01]} {[%emt 00:00:05]} Ne5 {[%clk 00:00:40]} 40. Rc7 {[%clk
00:07:42]} {[%emt 00:00:24]} Kf5 {[%clk 00:00:28]} {[%emt 00:00:17]} 41. Nf3
{[%clk 00:07:10]} {[%emt 00:00:36]} Nc4 {[%clk 00:00:32]} 42. Nd4+ {[%clk
00:06:19]} {[%emt 00:00:56]} Ke4 {[%clk 00:00:14]} {[%emt 00:00:23]} 43. Nc6
{[%clk 00:06:18]} {[%emt 00:00:06]} Rf8 {[%clk 00:00:13]} {[%emt 00:00:06]} 44.
b7 {[%clk 00:06:14]} {[%emt 00:00:10]} 1-0

[Event "New Zealand Rapid Championship"]
[Site "Wellington"]
[Date "2023.01.12"]
[Round "5.2"]
[White "Winsley, Nicholas"]
[Black "Xie, Felix"]
[Result "0-1"]
[TimeControl "25+5"]
[BlackTitle "CM"]
[WhiteFideId "4315146"]
[BlackFideId "4308174"]
[WhiteElo "1854"]
[BlackElo "2232"]

1. e4 {[%clk 00:25:09]} {[%emt 00:00:01]} c6 {[%clk 00:25:09]} {[%emt
00:00:01]} 2. d4 {[%clk 00:25:12]} {[%emt 00:00:12]} d5 {[%clk 00:25:12]} 3.
Nc3 {[%clk 00:25:15]} dxe4 {[%clk 00:25:15]} 4. Nxe4 {[%clk 00:25:19]} Nf6
{[%clk 00:25:18]} 5. Nxf6+ {[%clk 00:25:23]} exf6 {[%clk 00:25:21]} 6. c3
{[%clk 00:25:26]} {[%emt 00:00:02]} Bd6 {[%clk 00:25:25]} 7. Bd3 {[%clk
00:25:30]} {[%emt 00:00:01]} O-O {[%clk 00:25:24]} {[%emt 00:00:09]} 8. Qc2
{[%clk 00:25:33]} Re8+ {[%clk 00:25:27]} 9. Ne2 {[%clk 00:25:36]} {[%emt
00:00:02]} h5 {[%clk 00:25:31]} {[%emt 00:00:01]} 10. O-O {[%clk 00:25:12]}
{[%emt 00:00:30]} h4 {[%clk 00:25:33]} {[%emt 00:00:02]} 11. h3 {[%clk
00:25:05]} {[%emt 00:00:12]} Nd7 {[%clk 00:25:19]} {[%emt 00:00:25]} 12. Be3
{[%clk 00:24:17]} {[%emt 00:00:48]} Nf8 {[%clk 00:25:20]} {[%emt 00:00:03]} 13.
Rad1 {[%clk 00:23:41]} {[%emt 00:00:42]} Bc7 {[%clk 00:24:11]} {[%emt
00:01:14]} 14. Qc1 {[%clk 00:21:13]} {[%emt 00:02:33]} Be6 {[%clk 00:22:27]}
{[%emt 00:01:48]} 15. c4 {[%clk 00:20:26]} {[%emt 00:00:52]} Rc8 {[%clk
00:21:57]} {[%emt 00:00:35]} 16. Rfe1 {[%clk 00:18:41]} {[%emt 00:01:50]} Ng6
{[%clk 00:21:25]} {[%emt 00:00:38]} 17. Nf4 {[%clk 00:17:23]} {[%emt 00:01:23]}
Nxf4 {[%clk 00:18:15]} {[%emt 00:03:15]} 18. Bxf4 {[%clk 00:17:25]} {[%emt
00:00:03]} g5 {[%clk 00:18:19]} 19. Bxc7 {[%clk 00:17:03]} {[%emt 00:00:30]}
Qxc7 {[%clk 00:17:44]} {[%emt 00:00:46]} 20. Qc3 {[%clk 00:15:56]} {[%emt
00:01:02]} Kg7 {[%clk 00:16:35]} {[%emt 00:01:13]} 21. Bb1 {[%clk 00:14:54]}
{[%emt 00:01:07]} Rcd8 {[%clk 00:15:40]} {[%emt 00:01:10]} 22. Qd3 {[%clk
00:14:06]} {[%emt 00:00:44]} f5 {[%clk 00:12:56]} {[%emt 00:02:48]} 23. Qf3
{[%clk 00:11:32]} {[%emt 00:04:14]} Qf4 {[%clk 00:10:45]} {[%emt 00:00:42]} 24.
Qxf4 {[%clk 00:09:19]} {[%emt 00:02:18]} gxf4 {[%clk 00:10:49]} {[%emt
00:00:02]} 25. b3 {[%clk 00:08:41]} {[%emt 00:00:42]} b5 {[%clk 00:09:24]}
{[%emt 00:01:30]} 26. cxb5 {[%clk 00:06:48]} {[%emt 00:01:58]} cxb5 {[%clk
00:09:22]} {[%emt 00:00:07]} 27. Re5 {[%clk 00:06:08]} {[%emt 00:00:45]} Rd5
{[%clk 00:06:32]} {[%emt 00:02:56]} 28. Rde1 {[%clk 00:03:53]} {[%emt
00:02:19]} Red8 {[%clk 00:06:11]} {[%emt 00:00:27]} 29. Bd3 {[%clk 00:03:03]}
{[%emt 00:00:55]} a6 {[%clk 00:05:42]} {[%emt 00:00:34]} 30. Rxd5 {[%clk
00:02:53]} {[%emt 00:00:15]} Rxd5 {[%clk 00:05:47]} 31. Re5 {[%clk 00:02:28]}
{[%emt 00:00:29]} Rxd4 {[%clk 00:05:51]} {[%emt 00:00:02]} 32. Bf1 {[%clk
00:01:50]} {[%emt 00:00:43]} Rd1 {[%clk 00:05:21]} {[%emt 00:00:35]} 33. f3
{[%clk 00:01:44]} {[%emt 00:00:11]} Kf6 {[%clk 00:05:08]} {[%emt 00:00:18]} 34.
Re2 {[%clk 00:01:45]} {[%emt 00:00:04]} a5 {[%clk 00:04:58]} {[%emt 00:00:16]}
35. Rb2 {[%clk 00:01:30]} {[%emt 00:00:19]} a4 {[%clk 00:04:26]} {[%emt
00:00:38]} 36. bxa4 {[%clk 00:01:15]} {[%emt 00:01:07]} Bc4 {[%clk 00:04:32]}
{[%emt 00:00:59]} 37. Rf2 {[%clk 00:01:18]} bxa4 {[%clk 00:04:34]} {[%emt
00:00:03]} 38. a3 {[%clk 00:00:56]} {[%emt 00:00:28]} Ke5 {[%clk 00:04:38]} 0-1

[Event "New Zealand Rapid Championship"]
[Site "Wellington"]
[Date "2023.01.12"]
[Round "5.3"]
[White "Parfene, Horatiu"]
[Black "Shoker, Samy"]
[Result "0-1"]
[TimeControl "25+5"]
[BlackTitle "GM"]
[WhiteFideId "1208438"]
[BlackFideId "627143"]
[WhiteElo "2085"]
[BlackElo "2440"]

1. e4 {[%clk 00:25:04]} {[%emt 00:00:14]} g6 {[%clk 00:24:59]} {[%emt
00:00:02]} 2. Nf3 {[%clk 00:24:21]} {[%emt 00:00:49]} Bg7 {[%clk 00:25:01]}
{[%emt 00:00:03]} 3. d3 {[%clk 00:24:24]} {[%emt 00:00:02]} c5 {[%clk
00:25:04]} {[%emt 00:00:04]} 4. c3 {[%clk 00:24:27]} Nc6 {[%clk 00:25:05]}
{[%emt 00:00:04]} 5. g3 {[%clk 00:24:20]} {[%emt 00:00:11]} Nf6 {[%clk
00:25:07]} {[%emt 00:00:11]} 6. Bg2 {[%clk 00:23:56]} {[%emt 00:00:21]} d6
{[%clk 00:25:11]} {[%emt 00:00:02]} 7. O-O {[%clk 00:23:52]} {[%emt 00:00:09]}
O-O {[%clk 00:25:13]} {[%emt 00:00:02]} 8. Re1 {[%clk 00:22:56]} {[%emt
00:01:01]} e5 {[%clk 00:22:42]} {[%emt 00:02:36]} 9. Na3 {[%clk 00:22:41]}
{[%emt 00:00:21]} h6 {[%clk 00:22:45]} {[%emt 00:00:02]} 10. Nc4 {[%clk
00:22:31]} {[%emt 00:00:15]} Be6 {[%clk 00:21:57]} {[%emt 00:00:52]} 11. a4
{[%clk 00:22:09]} {[%emt 00:00:27]} b6 {[%clk 00:21:58]} {[%emt 00:00:05]} 12.
Ne3 {[%clk 00:19:05]} {[%emt 00:03:08]} Rc8 {[%clk 00:21:32]} {[%emt 00:00:31]}
13. Nh4 {[%clk 00:15:13]} {[%emt 00:03:58]} Re8 {[%clk 00:19:39]} {[%emt
00:01:57]} 14. Nd5 {[%clk 00:14:32]} {[%emt 00:00:47]} Bxd5 {[%clk 00:18:09]}
{[%emt 00:01:42]} 15. exd5 {[%clk 00:14:35]} Ne7 {[%clk 00:18:13]} 16. c4
{[%clk 00:14:19]} {[%emt 00:00:18]} Nh7 {[%clk 00:18:15]} {[%emt 00:00:02]} 17.
Bh3 {[%clk 00:11:40]} {[%emt 00:02:44]} f5 {[%clk 00:16:07]} {[%emt 00:02:28]}
18. f4 {[%clk 00:11:43]} Rc7 {[%clk 00:13:38]} {[%emt 00:05:36]} 19. Ra2 {[%clk
00:10:47]} Nf8 {[%clk 00:08:46]} {[%emt 00:02:44]} 20. b3 {[%clk 00:10:23]}
{[%emt 00:00:29]} Nc8 {[%clk 00:08:28]} {[%emt 00:00:23]} 21. Rae2 {[%clk
00:08:55]} {[%emt 00:01:33]} Rce7 {[%clk 00:08:31]} {[%emt 00:00:02]} 22. Bb2
{[%clk 00:07:47]} {[%emt 00:01:12]} exf4 {[%clk 00:07:51]} {[%emt 00:00:45]} 23.
Bxg7 {[%clk 00:06:17]} {[%emt 00:01:35]} Rxe2 {[%clk 00:07:07]} {[%emt
00:00:50]} 24. Rxe2 {[%clk 00:06:20]} {[%emt 00:00:02]} Rxe2 {[%clk 00:07:09]}
{[%emt 00:00:03]} 25. Bxf8 {[%clk 00:06:01]} {[%emt 00:00:23]} Qe8 {[%clk
00:06:34]} {[%emt 00:00:40]} 26. Kf1 {[%clk 00:05:27]} {[%emt 00:00:40]} Rxh2
{[%clk 00:06:34]} {[%emt 00:00:05]} 27. Bxh6 {[%clk 00:04:42]} {[%emt
00:00:49]} Rh1+ {[%clk 00:06:31]} {[%emt 00:00:08]} 28. Ke1 {[%clk 00:25:05]}
{[%emt 00:00:13]} 0-1

[Event "New Zealand Rapid Championship"]
[Site "Wellington"]
[Date "2023.01.12"]
[Round "5.4"]
[White "Langford, Joshua"]
[Black "Van Riemsdijk, Herman C."]
[Result "1/2-1/2"]
[TimeControl "25+5"]
[BlackTitle "IM"]
[WhiteFideId "4314557"]
[BlackFideId "2100053"]
[WhiteElo "1843"]
[BlackElo "2370"]

1. e4 {[%clk 00:25:09]} {[%emt 00:00:01]} c5 {[%clk 00:25:03]} {[%emt
00:00:14]} 2. Nf3 {[%clk 00:25:12]} Nc6 {[%clk 00:24:56]} {[%emt 00:00:14]} 3.
d4 {[%clk 00:25:14]} cxd4 {[%clk 00:24:55]} {[%emt 00:00:03]} 4. Nxd4 {[%clk
00:25:17]} {[%emt 00:00:02]} Nf6 {[%clk 00:24:54]} {[%emt 00:00:06]} 5. Nc3
{[%clk 00:25:20]} {[%emt 00:00:02]} e6 {[%clk 00:24:54]} {[%emt 00:00:05]} 6.
Ndb5 {[%clk 00:25:01]} {[%emt 00:00:25]} Bb4 {[%clk 00:24:47]} {[%emt
00:00:11]} 7. a3 {[%clk 00:25:00]} {[%emt 00:00:06]} Bxc3+ {[%clk 00:24:48]}
{[%emt 00:00:13]} 8. Nxc3 {[%clk 00:25:04]} d5 {[%clk 00:24:44]} 9. exd5 {[%clk
00:25:03]} {[%emt 00:00:05]} exd5 {[%clk 00:24:46]} {[%emt 00:00:04]} 10. Bd3
{[%clk 00:25:02]} {[%emt 00:00:09]} O-O {[%clk 00:24:38]} {[%emt 00:00:10]} 11.
O-O {[%clk 00:25:05]} {[%emt 00:00:03]} d4 {[%clk 00:24:39]} {[%emt 00:00:04]}
12. Ne2 {[%clk 00:25:05]} {[%emt 00:00:05]} Bg4 {[%clk 00:24:25]} {[%emt
00:00:19]} 13. f3 {[%clk 00:24:47]} {[%emt 00:00:23]} Bh5 {[%clk 00:24:24]}
{[%emt 00:00:05]} 14. Nf4 {[%clk 00:24:48]} {[%emt 00:00:05]} Bg6 {[%clk
00:24:20]} {[%emt 00:00:09]} 15. Nxg6 {[%clk 00:24:46]} {[%emt 00:00:07]} hxg6
{[%clk 00:24:19]} {[%emt 00:00:05]} 16. f4 {[%clk 00:24:45]} {[%emt 00:00:06]}
Ne7 {[%clk 00:21:43]} {[%emt 00:02:41]} 17. Qf3 {[%clk 00:24:37]} {[%emt
00:00:13]} Qb6 {[%clk 00:20:42]} {[%emt 00:01:07]} 18. a4 {[%clk 00:23:54]}
{[%emt 00:00:48]} Nf5 {[%clk 00:20:14]} {[%emt 00:00:35]} 19. Bd2 {[%clk
00:23:04]} {[%emt 00:00:53]} Ne3 {[%clk 00:19:25]} {[%emt 00:00:54]} 20. a5
{[%clk 00:19:52]} {[%emt 00:03:19]} Qc5 {[%clk 00:18:41]} {[%emt 00:00:47]} 21.
b4 {[%clk 00:19:06]} {[%emt 00:00:52]} Qe7 {[%clk 00:18:40]} {[%emt 00:00:06]}
22. Rfe1 {[%clk 00:19:00]} {[%emt 00:00:11]} Rfe8 {[%clk 00:13:28]} {[%emt
00:05:34]} 23. c3 {[%clk 00:17:45]} {[%emt 00:01:04]} Qd7 {[%clk 00:11:21]}
{[%emt 00:02:22]} 24. Bxe3 {[%clk 00:16:10]} {[%emt 00:01:30]} dxe3 {[%clk
00:11:10]} {[%emt 00:00:15]} 25. Rxe3 {[%clk 00:15:07]} {[%emt 00:04:13]} Rxe3
{[%clk 00:11:07]} 26. Qxe3 {[%clk 00:15:11]} Re8 {[%clk 00:11:05]} 27. Qf3
{[%clk 00:14:48]} Nd5 {[%clk 00:10:48]} 28. Bc4 {[%clk 00:09:45]} {[%emt
00:03:09]} Ne3 {[%clk 00:09:53]} {[%emt 00:01:00]} 29. Bb3 {[%clk 00:09:36]}
{[%emt 00:00:14]} Qd2 {[%clk 00:09:45]} {[%emt 00:00:12]} 30. Qxb7 {[%clk
00:08:36]} {[%emt 00:01:05]} Kh7 {[%clk 00:08:45]} {[%emt 00:01:06]} 31. Bxf7
{[%clk 00:05:49]} {[%emt 00:02:52]} Re7 {[%clk 00:08:41]} {[%emt 00:00:09]} 32.
Qf3 {[%clk 00:04:14]} {[%emt 00:01:40]} Rxf7 {[%clk 00:08:03]} {[%emt
00:00:43]} 33. Qh3+ {[%clk 00:04:18]} {[%emt 00:00:01]} Kg8 {[%clk 00:07:59]}
{[%emt 00:00:09]} 34. Qc8+ {[%clk 00:04:22]} 1/2-1/2

[Event "New Zealand Rapid Championship"]
[Site "Wellington"]
[Date "2023.01.12"]
[Round "5.5"]
[White "Young, Cohen"]
[Black "Hague, Ben"]
[Result "0-1"]
[TimeControl "25+5"]
[BlackTitle "FM"]
[WhiteFideId "4317440"]
[BlackFideId "405647"]
[WhiteElo "1777"]
[BlackElo "2410"]

1. e4 {[%clk 00:25:09]} Nf6 {[%clk 00:25:08]} {[%emt 00:00:12]} 2. e5 {[%clk
00:25:12]} Nd5 {[%clk 00:25:11]} 3. d4 {[%clk 00:25:13]} d6 {[%clk 00:25:15]} 4.
Nf3 {[%clk 00:25:16]} {[%emt 00:00:01]} dxe5 {[%clk 00:25:15]} {[%emt
00:00:13]} 5. Nxe5 {[%clk 00:25:19]} c6 {[%clk 00:25:18]} 6. c4 {[%clk
00:24:32]} {[%emt 00:00:48]} Nf6 {[%clk 00:25:13]} {[%emt 00:00:10]} 7. Be3
{[%clk 00:23:41]} {[%emt 00:00:56]} Bf5 {[%clk 00:24:42]} {[%emt 00:00:36]} 8.
Bd3 {[%clk 00:23:30]} {[%emt 00:00:17]} Bxd3 {[%clk 00:24:38]} {[%emt
00:00:09]} 9. Qxd3 {[%clk 00:23:32]} {[%emt 00:00:02]} Nbd7 {[%clk 00:24:35]}
{[%emt 00:00:09]} 10. f4 {[%clk 00:22:00]} {[%emt 00:01:37]} e6 {[%clk
00:24:21]} {[%emt 00:00:18]} 11. Nc3 {[%clk 00:19:26]} {[%emt 00:02:39]} Be7
{[%clk 00:23:59]} {[%emt 00:00:27]} 12. O-O {[%clk 00:19:13]} {[%emt 00:00:17]}
O-O {[%clk 00:23:52]} {[%emt 00:00:13]} 13. Rad1 {[%clk 00:17:43]} {[%emt
00:01:35]} Qc7 {[%clk 00:22:33]} {[%emt 00:01:24]} 14. Kh1 {[%clk 00:16:12]}
{[%emt 00:01:37]} Rad8 {[%clk 00:21:53]} {[%emt 00:00:44]} 15. Ne4 {[%clk
00:15:19]} {[%emt 00:00:59]} Nxe4 {[%clk 00:18:50]} {[%emt 00:03:17]} 16. Qxe4
{[%clk 00:15:22]} Nf6 {[%clk 00:18:51]} 17. Qf3 {[%clk 00:14:59]} {[%emt
00:00:24]} Qa5 {[%clk 00:17:53]} {[%emt 00:01:03]} 18. a3 {[%clk 00:14:31]}
{[%emt 00:00:34]} Qa4 {[%clk 00:17:08]} {[%emt 00:00:55]} 19. Bg1 {[%clk
00:11:26]} {[%emt 00:03:26]} a5 {[%clk 00:12:53]} {[%emt 00:06:01]} 20. h3
{[%clk 00:10:35]} Qc2 {[%clk 00:12:10]} 21. Rf2 {[%clk 00:09:51]} {[%emt
00:00:30]} Qe4 {[%clk 00:11:54]} {[%emt 00:00:21]} 22. Qc3 {[%clk 00:08:31]}
{[%emt 00:01:25]} a4 {[%clk 00:11:20]} {[%emt 00:00:39]} 23. Rff1 {[%clk
00:07:20]} {[%emt 00:01:16]} h5 {[%clk 00:08:33]} {[%emt 00:02:52]} 24. Rde1
{[%clk 00:07:10]} {[%emt 00:00:15]} Qf5 {[%clk 00:08:22]} {[%emt 00:00:16]} 25.
b3 {[%clk 00:06:02]} {[%emt 00:01:13]} h4 {[%clk 00:07:36]} {[%emt 00:00:52]}
26. Qd3 {[%clk 00:03:58]} {[%emt 00:02:09]} Qxd3 {[%clk 00:07:11]} {[%emt
00:00:30]} 27. Nxd3 {[%clk 00:04:02]} {[%emt 00:00:01]} axb3 {[%clk 00:07:13]}
{[%emt 00:00:03]} 28. Rb1 {[%clk 00:04:05]} {[%emt 00:00:02]} Ne4 {[%clk
00:07:12]} {[%emt 00:00:05]} 29. Rfe1 {[%clk 00:03:53]} {[%emt 00:00:17]} Nd2
{[%clk 00:06:58]} {[%emt 00:00:20]} 30. Rb2 {[%clk 00:03:56]} {[%emt 00:00:02]}
Nxc4 {[%clk 00:07:00]} {[%emt 00:00:02]} 31. Rxb3 {[%clk 00:04:00]} {[%emt
00:00:01]} b5 {[%clk 00:06:56]} {[%emt 00:00:09]} 32. f5 {[%clk 00:03:44]}
{[%emt 00:00:21]} Bxa3 {[%clk 00:06:51]} {[%emt 00:00:10]} 33. fxe6 {[%clk
00:03:42]} {[%emt 00:00:07]} fxe6 {[%clk 00:06:46]} {[%emt 00:00:10]} 34. Rxe6
{[%clk 00:03:24]} {[%emt 00:00:24]} Bd6 {[%clk 00:06:40]} {[%emt 00:00:11]} 35.
Rb1 {[%clk 00:02:45]} {[%emt 00:00:44]} Rde8 {[%clk 00:06:08]} {[%emt
00:00:37]} 36. Rg6 {[%clk 00:01:36]} {[%emt 00:01:13]} Nd2 {[%clk 00:04:13]}
{[%emt 00:02:00]} 37. Rc1 {[%clk 00:01:09]} {[%emt 00:00:32]} Ne4 {[%clk
00:04:15]} {[%emt 00:00:03]} 38. Bh2 {[%clk 00:01:06]} {[%emt 00:00:08]} Bxh2
{[%clk 00:03:49]} {[%emt 00:00:31]} 39. Kxh2 {[%clk 00:01:09]} {[%emt
00:00:02]} Rd8 {[%clk 00:03:47]} {[%emt 00:00:07]} 40. Rg4 {[%clk 00:00:44]}
{[%emt 00:00:30]} Nf6 {[%clk 00:02:44]} {[%emt 00:01:09]} 41. Rf4 {[%clk
00:00:14]} {[%emt 00:00:34]} Rd6 {[%clk 00:02:45]} {[%emt 00:00:04]} 42. Ne5
{[%clk 00:00:16]} {[%emt 00:00:03]} Rc8 {[%clk 00:02:40]} {[%emt 00:00:10]} 43.
Rxh4 {[%clk 00:00:13]} {[%emt 00:00:08]} b4 {[%clk 00:02:30]} {[%emt 00:00:15]}
44. Rf4 {[%clk 00:00:14]} {[%emt 00:00:04]} Nd5 {[%clk 00:02:26]} {[%emt
00:00:09]} 45. Rf2 {[%clk 00:00:16]} {[%emt 00:00:03]} Nc3 {[%clk 00:02:30]}
{[%emt 00:00:02]} 46. Rb2 {[%clk 00:00:16]} {[%emt 00:00:06]} Rxd4 {[%clk
00:02:32]} {[%emt 00:00:03]} 47. Nf3 {[%clk 00:00:18]} {[%emt 00:00:02]} Rf4
{[%clk 00:02:27]} {[%emt 00:00:10]} 48. Re1 {[%clk 00:00:13]} {[%emt 00:00:10]}
c5 {[%clk 00:02:24]} {[%emt 00:00:09]} 49. Rd2 {[%clk 00:00:08]} {[%emt
00:00:09]} Rf7 {[%clk 00:02:02]} {[%emt 00:00:27]} 50. Ne5 {[%clk 00:00:06]}
{[%emt 00:00:07]} Re7 {[%clk 00:01:58]} {[%emt 00:00:09]} 51. Rd7 {[%clk
00:00:09]} {[%emt 00:00:03]} Rce8 {[%clk 00:01:53]} {[%emt 00:00:09]} 52. Rxe7
{[%clk 00:00:08]} {[%emt 00:00:07]} Rxe7 {[%clk 00:01:57]} 53. Nd3 {[%clk
00:00:11]} {[%emt 00:00:01]} Rxe1 {[%clk 00:02:01]} {[%emt 00:00:01]} 54. Nxe1
{[%clk 00:00:15]} c4 {[%clk 00:01:53]} {[%emt 00:00:13]} 55. Nc2 {[%clk
00:00:16]} {[%emt 00:00:04]} b3 {[%clk 00:01:56]} {[%emt 00:00:02]} 56. Na3
{[%clk 00:00:19]} {[%emt 00:00:01]} b2 {[%clk 00:01:58]} {[%emt 00:00:03]} 57.
Kg3 {[%clk 00:00:23]} {[%emt 00:00:01]} b1=Q {[%clk 00:02:01]} {[%emt
00:00:03]} 58. Nxb1 {[%clk 00:00:25]} {[%emt 00:00:02]} Nxb1 {[%clk 00:02:05]}
{[%emt 00:00:02]} 0-1